[Event "NJSK 2026 Jeugd B"]
[Site "Helmond, Netherlands"]
[Date "2026.04.26"]
[Round "2.1"]
[White "Kurt, Sascha"]
[Black "Teianu, Maxim"]
[Result "1-0"]
[TimeControl "90min/40moves + 30min + 30sec/move"]
[WhiteTitle "-"]
[BlackTitle "-"]
[WhiteFideId "1082647"]
[BlackFideId "40101967"]
[WhiteElo "2280"]
[BlackElo "2024"]

1. e4 {[%clk 01:30:43]} {[%emt 00:00:14]} e6 {[%clk 01:30:55]} {[%emt
00:00:05]} 2. d4 {[%clk 01:30:07]} {[%emt 00:01:06]} d5 {[%clk 01:31:16]}
{[%emt 00:00:09]} 3. Nc3 {[%clk 01:30:30]} {[%emt 00:00:05]} dxe4 {[%clk
01:31:41]} {[%emt 00:00:07]} 4. Nxe4 {[%clk 01:30:51]} {[%emt 00:00:09]} Bd7
{[%clk 01:32:06]} {[%emt 00:00:05]} 5. Nf3 {[%clk 01:30:31]} {[%emt 00:00:50]}
Bc6 {[%clk 01:32:31]} {[%emt 00:00:05]} 6. Bd3 {[%clk 01:30:56]} {[%emt
00:00:04]} Nd7 {[%clk 01:32:56]} {[%emt 00:00:06]} 7. O-O {[%clk 01:31:02]}
{[%emt 00:00:24]} Ngf6 {[%clk 01:33:12]} {[%emt 00:00:15]} 8. Re1 {[%clk
01:30:46]} {[%emt 00:00:45]} Bxe4 {[%clk 01:31:50]} {[%emt 00:01:52]} 9. Bxe4
{[%clk 01:30:34]} {[%emt 00:00:41]} Nxe4 {[%clk 01:32:16]} {[%emt 00:00:04]} 10.
Rxe4 {[%clk 01:31:00]} {[%emt 00:00:05]} Be7 {[%clk 01:32:38]} {[%emt
00:00:09]} 11. Rg4 {[%clk 01:31:00]} {[%emt 00:00:29]} Bf6 {[%clk 01:30:49]}
{[%emt 00:02:19]} 12. h4 {[%clk 01:31:20]} {[%emt 00:00:11]} c5 {[%clk
01:26:23]} {[%emt 00:04:55]} 13. Bg5 {[%clk 01:31:32]} {[%emt 00:00:17]} cxd4
{[%clk 01:22:55]} {[%emt 00:03:59]} 14. Bxf6 {[%clk 01:31:33]} {[%emt
00:00:29]} Qxf6 {[%clk 01:22:47]} {[%emt 00:00:37]} 15. Rxd4 {[%clk 01:31:56]}
{[%emt 00:00:08]} Nb8 {[%clk 01:22:57]} {[%emt 00:00:20]} 16. Ne5 {[%clk
01:27:44]} {[%emt 00:04:43]} O-O {[%clk 01:22:12]} {[%emt 00:01:14]} 17. Qe2
{[%clk 01:27:44]} {[%emt 00:00:30]} Rc8 {[%clk 01:03:22]} {[%emt 00:19:19]} 18.
Rad1 {[%clk 01:22:09]} {[%emt 00:06:06]} Nc6 {[%clk 01:01:58]} {[%emt
00:01:54]} 19. Nxc6 {[%clk 01:22:22]} {[%emt 00:00:18]} Rxc6 {[%clk 01:01:58]}
{[%emt 00:00:29]} 20. c4 {[%clk 01:22:04]} {[%emt 00:00:48]} h6 {[%clk
00:58:16]} {[%emt 00:04:12]} 21. Qe4 {[%clk 01:16:18]} {[%emt 00:06:16]} Rac8
{[%clk 00:54:02]} {[%emt 00:04:42]} 22. b3 {[%clk 01:14:42]} {[%emt 00:02:07]}
R6c7 {[%clk 00:52:54]} {[%emt 00:01:40]} 23. g3 {[%clk 01:12:15]} {[%emt
00:02:56]} Qe7 {[%clk 00:45:41]} {[%emt 00:07:43]} 24. Rd6 {[%clk 01:09:24]}
{[%emt 00:03:21]} a6 {[%clk 00:43:05]} {[%emt 00:03:05]} 25. a4 {[%clk
01:09:13]} {[%emt 00:00:41]} Rf8 {[%clk 00:40:58]} {[%emt 00:02:37]} 26. Kg2
{[%clk 01:05:46]} {[%emt 00:03:58]} Rb8 {[%clk 00:40:11]} {[%emt 00:01:17]} 27.
a5 {[%clk 01:04:30]} {[%emt 00:01:46]} Rbc8 {[%clk 00:39:52]} {[%emt 00:00:48]}
28. R1d3 {[%clk 01:02:23]} {[%emt 00:02:38]} Re8 {[%clk 00:38:59]} {[%emt
00:01:23]} 29. b4 {[%clk 00:59:36]} {[%emt 00:03:18]} f5 {[%clk 00:36:27]}
{[%emt 00:03:01]} 30. Qe5 {[%clk 00:50:50]} {[%emt 00:09:17]} Qf7 {[%clk
00:31:37]} {[%emt 00:05:19]} 31. c5 {[%clk 00:45:59]} {[%emt 00:05:21]} Kh7
{[%clk 00:28:06]} {[%emt 00:04:01]} 32. Re3 {[%clk 00:42:04]} {[%emt 00:04:26]}
Rce7 {[%clk 00:28:17]} {[%emt 00:00:18]} 33. Rb6 {[%clk 00:39:31]} {[%emt
00:03:03]} Qg6 {[%clk 00:26:49]} {[%emt 00:01:57]} 34. c6 {[%clk 00:37:39]}
{[%emt 00:02:24]} bxc6 {[%clk 00:27:13]} {[%emt 00:00:06]} 35. Rxc6 {[%clk
00:31:09]} {[%emt 00:07:00]} Qg4 {[%clk 00:24:55]} {[%emt 00:02:46]} 36. Rb6
{[%clk 00:29:39]} {[%emt 00:02:01]} Rc8 {[%clk 00:08:44]} {[%emt 00:16:40]} 37.
Rxe6 {[%clk 00:28:34]} {[%emt 00:01:36]} Rxe6 {[%clk 00:09:03]} {[%emt
00:00:11]} 38. Qxe6 {[%clk 00:29:01]} {[%emt 00:00:02]} Rc4 {[%clk 00:09:15]}
{[%emt 00:00:17]} 39. Qxa6 {[%clk 00:23:26]} {[%emt 00:06:07]} Rxb4 {[%clk
00:09:36]} {[%emt 00:00:10]} 40. Re8 {[%clk 00:22:04]} {[%emt 00:01:52]} Re4
{[%clk 00:02:03]} {[%emt 00:08:02]} 41. Rc8 {[%clk 00:05:18]} {[%emt 00:17:17]}
Re1 {[%clk 00:00:36]} {[%emt 00:01:56]} 42. Qc4 {[%clk 00:03:36]} {[%emt
00:02:12]} Qxc4 {[%clk 00:00:35]} {[%emt 00:00:32]} 43. Rxc4 {[%clk 00:04:03]}
{[%emt 00:00:02]} Ra1 {[%clk 00:00:55]} {[%emt 00:00:10]} 44. Rc5 {[%clk
00:04:22]} {[%emt 00:00:11]} Kg6 {[%clk 00:00:57]} {[%emt 00:00:28]} 45. Rc6+
{[%clk 00:04:35]} {[%emt 00:00:18]} Kf7 {[%clk 00:00:56]} {[%emt 00:00:31]} 46.
a6 {[%clk 00:04:57]} {[%emt 00:00:08]} Ke8 {[%clk 00:00:54]} {[%emt 00:00:32]}
47. Kf3 {[%clk 00:04:30]} {[%emt 00:00:57]} Ra4 {[%clk 00:01:14]} {[%emt
00:00:09]} 48. Rb6 {[%clk 00:04:28]} {[%emt 00:00:32]} Ke7 {[%clk 00:01:05]}
{[%emt 00:00:39]} 49. Rb7+ {[%clk 00:03:54]} {[%emt 00:01:04]} Kf6 {[%clk
00:01:29]} {[%emt 00:00:06]} 50. a7 {[%clk 00:04:17]} {[%emt 00:00:08]} g5
{[%clk 00:01:36]} {[%emt 00:00:21]} 51. hxg5+ {[%clk 00:24:16]} {[%emt
00:10:32]} hxg5 {[%clk 00:31:39]} {[%emt 00:00:27]} 52. Ke2 {[%clk 00:24:39]}
{[%emt 00:00:08]} Ra3 {[%clk 00:21:07]} {[%emt 00:11:02]} 53. Kd2 {[%clk
00:23:13]} {[%emt 00:01:55]} g4 {[%clk 00:18:24]} {[%emt 00:03:13]} 54. Kc2
{[%clk 00:17:26]} {[%emt 00:06:18]} Ke5 {[%clk 00:18:28]} {[%emt 00:00:25]} 55.
Kb2 {[%clk 00:13:43]} {[%emt 00:04:14]} Ra6 {[%clk 00:16:08]} {[%emt 00:02:50]}
56. Kc3 {[%clk 00:12:56]} {[%emt 00:01:17]} Ke4 {[%clk 00:16:18]} {[%emt
00:00:20]} 57. Rf7 {[%clk 00:13:14]} {[%emt 00:00:12]} Ra1 {[%clk 00:16:05]}
{[%emt 00:00:43]} 58. Kc4 {[%clk 00:12:29]} {[%emt 00:01:15]} Rc1+ {[%clk
00:16:31]} {[%emt 00:00:04]} 59. Kb5 {[%clk 00:12:42]} {[%emt 00:00:17]} Rb1+
{[%clk 00:16:52]} {[%emt 00:00:09]} 60. Kc6 {[%clk 00:12:33]} {[%emt 00:00:39]}
Ra1 {[%clk 00:16:04]} {[%emt 00:01:17]} 61. Kb7 {[%clk 00:12:46]} {[%emt
00:00:17]} Rb1+ {[%clk 00:16:27]} {[%emt 00:00:08]} 62. Kc8 {[%clk 00:13:08]}
{[%emt 00:00:07]} Ra1 {[%clk 00:16:54]} {[%emt 00:00:05]} 63. Kb8 {[%clk
00:13:30]} {[%emt 00:00:07]} Rb1+ {[%clk 00:17:19]} {[%emt 00:00:05]} 64. Rb7
{[%clk 00:13:45]} {[%emt 00:00:15]} Rh1 {[%clk 00:16:32]} {[%emt 00:01:15]} 65.
a8=Q {[%emt 00:00:40]} Rh8+ {[%clk 00:16:56]} {[%emt 00:00:05]} 66. Ka7 {[%clk
00:14:00]} {[%emt 00:00:08]} Rxa8+ {[%clk 00:17:20]} {[%emt 00:00:06]} 67. Kxa8
{[%clk 00:14:28]} {[%emt 00:00:02]} Kf3 {[%clk 00:17:42]} {[%emt 00:00:08]} 68.
Rb2 {[%clk 00:14:53]} {[%emt 00:00:04]} 1-0

[Event "NJSK 2026 Jeugd B"]
[Site "Helmond, Netherlands"]
[Date "2026.04.26"]
[Round "2.2"]
[White "Frederiks, Jesse"]
[Black "Aravindhan, Achyuth"]
[Result "0-1"]
[TimeControl "90min/40moves + 30min + 30sec/move"]
[WhiteTitle "-"]
[BlackTitle "-"]
[WhiteFideId "1095790"]
[BlackFideId "1084216"]
[WhiteElo "2018"]
[BlackElo "2277"]

1. e4 {[%clk 01:30:54]} {[%emt 00:00:05]} c5 {[%clk 01:30:55]} {[%emt
00:00:06]} 2. Nf3 {[%clk 01:31:18]} {[%emt 00:00:05]} Nc6 {[%clk 01:31:21]}
{[%emt 00:00:04]} 3. Nc3 {[%clk 01:31:29]} {[%emt 00:00:19]} e5 {[%clk
01:30:26]} {[%emt 00:01:25]} 4. Bc4 {[%clk 01:31:28]} {[%emt 00:00:30]} Be7
{[%clk 01:29:46]} {[%emt 00:01:12]} 5. d3 {[%clk 01:31:10]} {[%emt 00:00:46]}
d6 {[%clk 01:28:00]} {[%emt 00:02:17]} 6. Nd2 {[%clk 01:30:49]} {[%emt
00:00:50]} Nf6 {[%clk 01:24:48]} {[%emt 00:03:44]} 7. Nf1 {[%clk 01:30:38]}
{[%emt 00:00:37]} O-O {[%clk 01:16:30]} {[%emt 00:08:52]} 8. Ne3 {[%clk
01:30:11]} {[%emt 00:00:53]} Be6 {[%clk 01:16:06]} {[%emt 00:00:55]} 9. O-O
{[%clk 01:23:45]} {[%emt 00:06:57]} Nd4 {[%clk 01:07:41]} {[%emt 00:08:56]} 10.
a4 {[%clk 01:17:04]} {[%emt 00:07:11]} a6 {[%clk 00:57:02]} {[%emt 00:11:10]}
11. Ned5 {[%clk 01:11:46]} {[%emt 00:05:46]} Bxd5 {[%clk 00:48:24]} {[%emt
00:09:09]} 12. Nxd5 {[%clk 01:10:08]} {[%emt 00:02:06]} Rb8 {[%clk 00:45:50]}
{[%emt 00:03:07]} 13. f4 {[%clk 00:52:04]} {[%emt 00:18:34]} exf4 {[%clk
00:36:44]} {[%emt 00:09:36]} 14. Bxf4 {[%clk 00:51:10]} {[%emt 00:01:23]} b5
{[%clk 00:36:56]} {[%emt 00:00:19]} 15. axb5 {[%clk 00:48:37]} {[%emt
00:03:03]} axb5 {[%clk 00:36:29]} {[%emt 00:00:58]} 16. Ra7 {[%clk 00:45:05]}
{[%emt 00:04:01]} Nc6 {[%clk 00:32:31]} {[%emt 00:04:28]} 17. Nxe7+ {[%clk
00:45:22]} {[%emt 00:00:13]} Nxe7 {[%clk 00:32:51]} {[%emt 00:00:10]} 18. Bb3
{[%clk 00:45:13]} {[%emt 00:00:39]} c4 {[%clk 00:32:35]} {[%emt 00:00:45]} 19.
Rxe7 {[%clk 00:43:08]} {[%emt 00:02:35]} cxb3 {[%clk 00:31:34]} {[%emt
00:01:32]} 20. Bg5 {[%clk 00:42:21]} {[%emt 00:01:17]} Qxe7 {[%clk 00:31:38]}
{[%emt 00:00:27]} 21. Bxf6 {[%clk 00:42:38]} {[%emt 00:00:11]} gxf6 {[%clk
00:31:56]} {[%emt 00:00:12]} 22. Rf3 {[%clk 00:40:07]} {[%emt 00:03:02]} bxc2
{[%clk 00:32:00]} {[%emt 00:00:26]} 23. Rg3+ {[%clk 00:40:20]} {[%emt
00:00:17]} Kh8 {[%clk 00:32:22]} {[%emt 00:00:08]} 0-1

[Event "NJSK 2026 Jeugd B"]
[Site "Helmond, Netherlands"]
[Date "2026.04.26"]
[Round "2.3"]
[White "Winter, Sven"]
[Black "Chua, Ethan"]
[Result "0-1"]
[TimeControl "90min/40moves + 30min + 30sec/move"]
[WhiteTitle "-"]
[BlackTitle "-"]
[WhiteFideId "1092375"]
[BlackFideId "1089250"]
[WhiteElo "2013"]
[BlackElo "2168"]

1. e4 {[%clk 01:30:44]} {[%emt 00:00:13]} e5 {[%clk 01:30:44]} {[%emt
00:00:16]} 2. Nf3 {[%clk 01:30:36]} {[%emt 00:00:38]} Nc6 {[%clk 01:31:09]}
{[%emt 00:00:05]} 3. Bc4 {[%clk 01:30:43]} {[%emt 00:00:23]} Bc5 {[%clk
01:31:35]} {[%emt 00:00:04]} 4. c3 {[%clk 01:31:01]} {[%emt 00:00:12]} Nf6
{[%clk 01:31:59]} {[%emt 00:00:07]} 5. d3 {[%clk 01:31:18]} {[%emt 00:00:12]}
O-O {[%clk 01:32:23]} {[%emt 00:00:07]} 6. Bg5 {[%clk 01:30:35]} {[%emt
00:01:12]} h6 {[%clk 01:32:45]} {[%emt 00:00:08]} 7. Bh4 {[%clk 01:30:56]}
{[%emt 00:00:08]} Be7 {[%clk 01:33:11]} {[%emt 00:00:05]} 8. O-O {[%clk
01:28:20]} {[%emt 00:03:05]} d5 {[%clk 01:31:04]} {[%emt 00:02:39]} 9. exd5
{[%clk 01:22:42]} {[%emt 00:06:07]} Nxd5 {[%clk 01:29:27]} {[%emt 00:02:07]} 10.
Bg3 {[%clk 01:17:35]} {[%emt 00:05:37]} Bg4 {[%clk 01:26:25]} {[%emt 00:03:32]}
11. Nbd2 {[%clk 01:13:36]} {[%emt 00:04:29]} Nb6 {[%clk 01:23:54]} {[%emt
00:03:00]} 12. Bb5 {[%clk 01:11:48]} {[%emt 00:02:19]} Bd6 {[%clk 01:24:12]}
{[%emt 00:00:12]} 13. Qc2 {[%clk 01:09:11]} {[%emt 00:03:06]} Nd7 {[%clk
00:56:35]} {[%emt 00:28:08]} 14. Rfe1 {[%clk 01:01:04]} {[%emt 00:08:37]} Re8
{[%clk 00:53:24]} {[%emt 00:03:40]} 15. h3 {[%clk 00:58:17]} {[%emt 00:03:17]}
Bh5 {[%clk 00:52:04]} {[%emt 00:01:50]} 16. Nh4 {[%clk 00:53:52]} {[%emt
00:04:55]} Nf8 {[%clk 00:45:37]} {[%emt 00:06:58]} 17. Ne4 {[%clk 00:50:58]}
{[%emt 00:03:24]} Qd7 {[%clk 00:39:07]} {[%emt 00:07:00]} 18. Bh2 {[%clk
00:38:13]} {[%emt 00:13:14]} Rad8 {[%clk 00:31:30]} {[%emt 00:08:08]} 19. Ng3
{[%clk 00:35:35]} {[%emt 00:03:07]} Bg6 {[%clk 00:31:48]} {[%emt 00:00:13]} 20.
Nxg6 {[%clk 00:34:43]} {[%emt 00:01:22]} Nxg6 {[%clk 00:32:07]} {[%emt
00:00:11]} 21. a4 {[%clk 00:26:27]} {[%emt 00:08:47]} a6 {[%clk 00:30:52]}
{[%emt 00:01:45]} 22. Bc4 {[%clk 00:26:40]} {[%emt 00:00:17]} Bf8 {[%clk
00:30:54]} {[%emt 00:00:27]} 23. d4 {[%clk 00:21:08]} {[%emt 00:06:02]} Nf4
{[%clk 00:20:56]} {[%emt 00:10:26]} 24. Nf5 {[%clk 00:20:45]} {[%emt 00:00:54]}
Kh8 {[%clk 00:09:21]} {[%emt 00:12:06]} 25. Ba2 {[%clk 00:17:01]} {[%emt
00:04:14]} e4 {[%clk 00:06:04]} {[%emt 00:03:47]} 26. Ng3 {[%clk 00:12:19]}
{[%emt 00:05:12]} f5 {[%clk 00:06:04]} {[%emt 00:00:31]} 27. Qb3 {[%clk
00:11:09]} {[%emt 00:01:39]} Bd6 {[%clk 00:05:49]} {[%emt 00:00:45]} 28. Qf7
{[%clk 00:10:14]} {[%emt 00:01:26]} Qxf7 {[%clk 00:04:42]} {[%emt 00:01:36]} 29.
Bxf7 {[%clk 00:10:35]} {[%emt 00:00:09]} Re7 {[%clk 00:04:47]} {[%emt
00:00:24]} 30. Bc4 {[%clk 00:09:05]} {[%emt 00:02:01]} g6 {[%clk 00:04:52]}
{[%emt 00:00:25]} 31. Ne2 {[%clk 00:07:18]} {[%emt 00:02:17]} Nxe2+ {[%clk
00:04:40]} {[%emt 00:00:42]} 32. Bxe2 {[%clk 00:07:14]} {[%emt 00:00:34]} f4
{[%clk 00:04:08]} {[%emt 00:01:03]} 33. b4 {[%clk 00:06:03]} {[%emt 00:01:40]}
a5 {[%clk 00:03:37]} {[%emt 00:01:01]} 34. b5 {[%clk 00:02:27]} {[%emt
00:04:06]} Nb8 {[%clk 00:03:45]} {[%emt 00:00:22]} 35. Red1 {[%clk 00:01:40]}
{[%emt 00:01:17]} g5 {[%clk 00:03:45]} {[%emt 00:00:31]} 36. Rab1 {[%clk
00:01:20]} {[%emt 00:00:49]} Nd7 {[%clk 00:03:40]} {[%emt 00:00:33]} 37. c4
{[%clk 00:00:42]} {[%emt 00:01:10]} Bb4 {[%clk 00:04:04]} {[%emt 00:00:06]} 38.
c5 {[%clk 00:00:45]} {[%emt 00:00:27]} Nf6 {[%clk 00:04:26]} {[%emt 00:00:08]}
39. Rbc1 {[%clk 00:00:35]} {[%emt 00:00:41]} Nd5 {[%clk 00:03:58]} {[%emt
00:00:56]} 40. Rc4 {[%clk 00:30:00]} {[%emt 00:00:36]} Nc3 {[%clk 00:33:55]}
{[%emt 00:00:33]} 41. Rd2 {[%clk 00:21:26]} {[%emt 00:09:34]} e3 {[%clk
00:29:02]} {[%emt 00:05:22]} 42. Rc2 {[%clk 00:18:14]} {[%emt 00:03:42]} Rde8
{[%clk 00:23:41]} {[%emt 00:05:51]} 43. f3 {[%clk 00:14:58]} {[%emt 00:03:46]}
Nd5 {[%clk 00:19:59]} {[%emt 00:04:13]} 44. Kf1 {[%clk 00:14:24]} {[%emt
00:01:04]} Kg7 {[%clk 00:20:08]} {[%emt 00:00:21]} 45. Bd3 {[%clk 00:13:57]}
{[%emt 00:00:57]} e2+ {[%clk 00:19:24]} {[%emt 00:01:14]} 46. Rxe2 {[%clk
00:11:58]} {[%emt 00:02:28]} Rxe2 {[%clk 00:19:33]} {[%emt 00:00:22]} 0-1

[Event "NJSK 2026 Jeugd B"]
[Site "Helmond, Netherlands"]
[Date "2026.04.26"]
[Round "2.4"]
[White "Groenewoud, Joel"]
[Black "De Jong, Lode"]
[Result "1-0"]
[TimeControl "90min/40moves + 30min + 30sec/move"]
[WhiteTitle "-"]
[BlackTitle "-"]
[WhiteFideId "1087746"]
[BlackFideId "40101860"]
[WhiteElo "2114"]
[BlackElo "1902"]

1. e4 {[%clk 01:30:48]} {[%emt 00:00:10]} c5 {[%clk 01:30:56]} {[%emt
00:00:04]} 2. Nf3 {[%clk 01:30:16]} {[%emt 00:01:03]} d6 {[%clk 01:30:59]}
{[%emt 00:00:28]} 3. d4 {[%clk 01:30:38]} {[%emt 00:00:07]} cxd4 {[%clk
01:31:24]} {[%emt 00:00:05]} 4. Nxd4 {[%clk 01:31:03]} {[%emt 00:00:05]} Nf6
{[%clk 01:31:49]} {[%emt 00:00:05]} 5. Nc3 {[%clk 01:31:26]} {[%emt 00:00:07]}
a6 {[%clk 01:32:16]} {[%emt 00:00:03]} 6. f3 {[%clk 01:31:52]} {[%emt
00:00:04]} e5 {[%clk 01:32:43]} {[%emt 00:00:04]} 7. Nb3 {[%clk 01:32:16]}
{[%emt 00:00:05]} Be7 {[%clk 01:33:08]} {[%emt 00:00:05]} 8. Be3 {[%clk
01:32:41]} {[%emt 00:00:04]} Be6 {[%clk 01:33:35]} {[%emt 00:00:04]} 9. Qd2
{[%clk 01:32:14]} {[%emt 00:00:57]} h5 {[%clk 01:33:43]} {[%emt 00:00:22]} 10.
Nd5 {[%clk 01:32:21]} {[%emt 00:00:23]} Bxd5 {[%clk 01:34:02]} {[%emt
00:00:12]} 11. exd5 {[%clk 01:32:46]} {[%emt 00:00:03]} Nbd7 {[%clk 01:34:28]}
{[%emt 00:00:04]} 12. Na5 {[%clk 01:27:08]} {[%emt 00:06:07]} Qc7 {[%clk
01:32:56]} {[%emt 00:02:04]} 13. Be2 {[%clk 01:19:23]} {[%emt 00:08:14]} O-O
{[%clk 01:30:33]} {[%emt 00:02:52]} 14. c4 {[%clk 01:15:09]} {[%emt 00:04:44]}
e4 {[%clk 01:30:24]} {[%emt 00:00:40]} 15. b4 {[%clk 01:07:25]} {[%emt
00:08:14]} Ne5 {[%clk 01:25:01]} {[%emt 00:05:53]} 16. f4 {[%clk 01:00:41]}
{[%emt 00:07:14]} Neg4 {[%clk 01:25:24]} {[%emt 00:00:07]} 17. Bd4 {[%clk
00:55:42]} {[%emt 00:05:30]} Rfe8 {[%clk 01:14:45]} {[%emt 00:11:08]} 18. O-O
{[%clk 00:50:07]} {[%emt 00:06:05]} Qd7 {[%clk 00:58:06]} {[%emt 00:17:10]} 19.
Rac1 {[%clk 00:43:47]} {[%emt 00:06:50]} Rac8 {[%clk 00:56:11]} {[%emt
00:02:25]} 20. h3 {[%clk 00:37:58]} {[%emt 00:06:17]} Nh6 {[%clk 00:53:59]}
{[%emt 00:02:42]} 21. Bxf6 {[%clk 00:32:59]} {[%emt 00:05:30]} Bxf6 {[%clk
00:52:46]} {[%emt 00:01:43]} 22. Bxh5 {[%clk 00:32:50]} {[%emt 00:00:38]} Qc7
{[%clk 00:39:07]} {[%emt 00:14:10]} 23. Kh2 {[%clk 00:29:59]} {[%emt 00:03:21]}
Qb6 {[%clk 00:35:13]} {[%emt 00:04:24]} 24. Be2 {[%clk 00:23:11]} {[%emt
00:07:18]} Nf5 {[%clk 00:17:12]} {[%emt 00:18:32]} 25. Bg4 {[%clk 00:21:39]}
{[%emt 00:02:02]} Ne3 {[%clk 00:17:30]} {[%emt 00:00:12]} 26. Bxc8 {[%clk
00:19:53]} {[%emt 00:02:16]} Nxf1+ {[%clk 00:17:56]} {[%emt 00:00:04]} 27. Rxf1
{[%clk 00:20:16]} {[%emt 00:00:06]} Rxc8 {[%clk 00:16:36]} {[%emt 00:01:50]} 28.
Re1 {[%clk 00:19:05]} {[%emt 00:01:41]} Re8 {[%clk 00:16:28]} {[%emt 00:00:38]}
29. a3 {[%clk 00:18:51]} {[%emt 00:00:45]} e3 {[%clk 00:15:39]} {[%emt
00:01:18]} 30. Qd3 {[%clk 00:18:29]} {[%emt 00:00:53]} Re7 {[%clk 00:07:24]}
{[%emt 00:08:45]} 31. Nb3 {[%clk 00:10:08]} {[%emt 00:08:51]} Bb2 {[%clk
00:05:21]} {[%emt 00:02:33]} 32. c5 {[%clk 00:08:08]} {[%emt 00:02:30]} Qc7
{[%clk 00:04:55]} {[%emt 00:00:55]} 33. Rxe3 {[%clk 00:07:41]} {[%emt
00:00:58]} Bxa3 {[%clk 00:05:07]} {[%emt 00:00:18]} 34. Rxe7 {[%clk 00:07:37]}
{[%emt 00:00:33]} Qxe7 {[%clk 00:05:32]} {[%emt 00:00:05]} 35. Qd4 {[%clk
00:03:54]} {[%emt 00:04:14]} Qc7 {[%clk 00:03:24]} {[%emt 00:02:38]} 36. Kg3
{[%clk 00:01:42]} {[%emt 00:02:41]} Kf8 {[%clk 00:02:33]} {[%emt 00:01:21]} 37.
Qc3 {[%clk 00:01:12]} {[%emt 00:01:01]} g5 {[%clk 00:02:03]} {[%emt 00:01:01]}
38. c6 {[%clk 00:00:41]} {[%emt 00:01:01]} bxc6 {[%clk 00:01:54]} {[%emt
00:00:38]} 39. fxg5 {[%clk 00:00:40]} {[%emt 00:00:31]} c5 {[%clk 00:01:56]}
{[%emt 00:00:28]} 40. Qh8+ {[%clk 00:00:34]} {[%emt 00:00:35]} Ke7 {[%clk
00:02:19]} {[%emt 00:00:07]} 41. Qf6+ {[%clk 00:01:00]} {[%emt 00:00:05]} Ke8
{[%clk 00:02:35]} {[%emt 00:00:15]} 42. Qh8+ {[%clk 00:01:11]} {[%emt
00:00:18]} Ke7 {[%clk 00:03:00]} {[%emt 00:00:05]} 43. Na5 {[%clk 00:28:58]}
{[%emt 00:02:42]} cxb4 {[%clk 00:30:29]} {[%emt 00:03:02]} 44. Nc6+ {[%clk
00:28:30]} {[%emt 00:00:58]} Kd7 {[%clk 00:30:57]} {[%emt 00:00:02]} 45. Qf8
{[%clk 00:28:36]} {[%emt 00:00:23]} Qb6 {[%clk 00:26:34]} {[%emt 00:04:54]} 46.
Qe7+ {[%clk 00:28:38]} {[%emt 00:00:28]} Kc8 {[%clk 00:26:58]} {[%emt
00:00:06]} 47. Qe8+ {[%clk 00:29:00]} {[%emt 00:00:07]} Kc7 {[%clk 00:26:30]}
{[%emt 00:00:59]} 48. Qd8+ {[%clk 00:29:22]} {[%emt 00:00:08]} 1-0